bitfinex-derivatives/quotes_BTCF0:USTF0_20250609
["timestamp","ask_amount","ask_price","bid_price","bid_amount"]
[1749491966469,1.34673135,108320.0,108310.0,0.23819717]
[1749491966765,1.34673135,108320.0,108310.0,0.05364507]
[1749491966951,1.34673135,108320.0,108310.0,0.05464507]
[1749491968065,1.49983135,108320.0,108310.0,0.05464507]
[1749491968667,1.49983135,108320.0,108310.0,0.05364507]
[1749491969366,1.53560447,108320.0,108310.0,0.05364507]
[1749491969563,1.00872447,108320.0,108310.0,0.05364507]
[1749491969765,1.53556447,108320.0,108310.0,0.05364507]
[1749491970370,1.53656447,108320.0,108310.0,0.05364507]
[1749491975076,1.53660447,108320.0,108310.0,0.05364507]
[1749491975472,1.17580447,108320.0,108310.0,0.05364507]
[1749491975670,0.64892447,108320.0,108310.0,0.05364507]
[1749491975871,1.17580447,108320.0,108310.0,0.05364507]
[1749491976276,1.13680447,108320.0,108310.0,0.05364507]
[1749491976675,1.49760447,108320.0,108310.0,0.05364507]
[1749491980786,1.49760447,108320.0,108310.0,0.23819727]
[1749491980981,0.86224822,108320.0,108310.0,0.23819727]
[1749491981182,0.70914822,108320.0,108310.0,0.33369727]
[1749491981484,0.92086447,108320.0,108310.0,0.33369727]
[1749491981687,0.92086447,108320.0,108310.0,0.69449727]
[1749491982086,0.39402447,108320.0,108310.0,0.69449727]
[1749491982286,0.92086447,108320.0,108310.0,0.69449727]
[1749491982483,0.92046447,108320.0,108310.0,0.69449727]
[1749491982687,0.99886447,108320.0,108310.0,0.69449727]
[1749491983388,0.95986447,108320.0,108310.0,0.69449727]
[1749491983783,0.95886447,108320.0,108310.0,0.69449727]
[1749491985684,0.95882447,108320.0,108310.0,0.80914089]
[1749491985884,0.95882447,108320.0,108310.0,0.69449727]
[1749491986183,0.95882447,108320.0,108310.0,0.80914089]
[1749491986384,0.56297312,108320.0,108310.0,0.69449727]
[1749491986790,0.74750822,108320.0,108310.0,0.69449727]
[1749491987793,0.95882447,108320.0,108310.0,0.69449727]
[1749491987984,0.77428937,108320.0,108310.0,0.69449727]
[1749491988184,0.77428937,108320.0,108310.0,0.80914089]
[1749491988391,0.03577312,108320.0,108310.0,0.80914089]
[1749491988693,0.5272,108320.0,108310.0,1.02045714]
[1749491988888,0.5268,108320.0,108310.0,1.02045714]
[1749491989088,0.5268,108320.0,108310.0,0.80914089]
[1749491989089,0.5272,108320.0,108310.0,0.80914089]
[1749491989393,0.7117351,108320.0,108310.0,0.80914089]
[1749491989890,0.7127351,108320.0,108310.0,0.80914089]
[1749491990486,0.6727351,108320.0,108310.0,0.81014089]
[1749491991090,0.88405135,108320.0,108310.0,0.81014089]
[1749491992493,0.9561484,108320.0,108310.0,0.81014089]
[1749491992994,0.9561484,108320.0,108310.0,0.69549727]
[1749491994093,0.9561484,108320.0,108310.0,0.83887376]
[1749491995388,0.9561484,108320.0,108310.0,0.95378656]
[1749491995595,0.9561484,108320.0,108310.0,0.81041007]
[1749491995894,0.9561484,108320.0,108310.0,0.69549727]
[1749491996096,0.9561484,108320.0,108310.0,0.83887376]
[1749491996697,0.9561484,108320.0,108310.0,0.69549727]
[1749491996989,0.9561484,108320.0,108310.0,0.83887376]
[1749491997697,0.9171484,108320.0,108310.0,0.83887376]
[1749492000501,0.70583215,108320.0,108310.0,0.83887376]
[1749492000699,0.9171484,108320.0,108310.0,0.83887376]
[1749492001001,0.9171484,108320.0,108310.0,0.95382656]
[1749492001297,0.9171484,108320.0,108310.0,0.81045007]
[1749492001899,0.9171484,108320.0,108310.0,0.78035007]
[1749492002100,0.70583215,108320.0,108310.0,0.78035007]
[1749492002293,0.25703215,108320.0,108310.0,0.78035007]
[1749492002495,0.78355215,108320.0,108310.0,0.78035007]
[1749492003096,0.07249705,108320.0,108310.0,0.99166632]
[1749492003401,0.59861705,108320.0,108310.0,1.02009001]
[1749492003602,0.49873705,108320.0,108310.0,1.02009001]
[1749492003797,1.99873705,108320.0,108310.0,1.02009001]
[1749492004696,1.57249705,108320.0,108310.0,1.02009001]
[1749492004898,1.99873705,108320.0,108310.0,0.87671352]
[1749492005099,1.99873705,108320.0,108310.0,1.07744061]
[1749492005501,1.99873705,108320.0,108310.0,0.86612436]
[1749492005799,1.95973705,108320.0,108310.0,1.02036157]
[1749492006598,0.45973705,108320.0,108310.0,0.80904532]
[1749492006799,0.45973705,108320.0,108310.0,1.02036157]
[1749492007304,0.45969705,108320.0,108310.0,1.02036157]
[1749492007502,0.45929705,108320.0,108310.0,1.22113576]
[1749492007703,0.45969705,108320.0,108310.0,1.22113576]
[1749492007904,0.45969705,108320.0,108310.0,1.22112152]
[1749492008304,0.45969705,108320.0,108310.0,1.07744061]
[1749492008603,0.45969705,108320.0,108310.0,1.16976061]
[1749492008802,0.45969705,108320.0,108310.0,1.07744061]
[1749492008999,0.45969705,108320.0,108310.0,0.87671352]
[1749492009399,0.45969705,108320.0,108310.0,1.07744061]
[1749492009705,0.45969705,108320.0,108310.0,0.51591352]
[1749492009902,0.45969705,108320.0,108310.0,1.23751352]
[1749492010106,0.45969705,108320.0,108310.0,1.58187253]
[1749492010496,0.45969705,108320.0,108310.0,1.02619727]
[1749492010701,0.45969705,108320.0,108310.0,1.38111953]
[1749492011311,0.45969705,108320.0,108310.0,1.16980328]
[1749492011501,0.45969705,108320.0,108310.0,1.38111953]
[1749492011704,0.00726495,108320.0,108310.0,1.47343953]
[1749492011909,1.92616,108330.0,108320.0,0.1845324]
[1749492012201,1.92616,108330.0,108320.0,1.05417574]
[1749492012603,1.92616,108330.0,108320.0,1.10569021]
[1749492012798,0.38716,108330.0,108320.0,1.10569021]
[1749492013004,1.16790233,108340.0,108330.0,0.1845153]
[1749492013207,1.16790233,108340.0,108330.0,0.7535048]
[1749492013410,2.66790233,108340.0,108330.0,0.7535048]
[1749492013605,2.48340323,108340.0,108330.0,0.80075865]
[1749492014404,1.95736323,108340.0,108330.0,1.0120749]
[1749492014607,0.0626,108360.0,108330.0,1.13117985]
[1749492014811,0.3779469,108360.0,108350.0,1.02080383]
[1749492015114,0.8040669,108360.0,108350.0,1.02080383]
[1749492015316,0.8040669,108360.0,108350.0,1.05210383]
[1749492015317,1.01538315,108360.0,108350.0,1.05210383]
[1749492015503,1.01578315,108360.0,108350.0,1.09083881]
[1749492015902,1.01878315,108360.0,108350.0,1.09083881]
[1749492016910,0.034,108360.0,108350.0,1.30215506]
[1749492017114,0.56036,108360.0,108350.0,1.33535506]
[1749492017312,0.77732806,108360.0,108350.0,1.33535506]
[1749492017505,0.59246386,108360.0,108350.0,1.33535506]
[1749492017710,0.77732806,108360.0,108350.0,1.12403881]
[1749492018416,0.77732806,108360.0,108350.0,0.69973881]
[1749492018417,0.98564431,108360.0,108350.0,0.69973881]
[1749492018618,1.04734431,108360.0,108350.0,0.69973881]
[1749492018817,1.04734431,108360.0,108350.0,0.58501618]
[1749492019116,1.04734431,108360.0,108350.0,0.58401618]
[1749492019512,0.16338386,108360.0,108350.0,1.22193243]
[1749492019706,0.55922386,108360.0,108350.0,1.25283243]
[1749492019909,0.55882386,108360.0,108350.0,1.25283243]
[1749492020210,0.55922386,108360.0,108350.0,1.25283243]
[1749492021116,0.55922386,108360.0,108350.0,1.04251618]
[1749492021316,0.55906386,108360.0,108350.0,1.04251618]
[1749492021507,0.74352806,108360.0,108350.0,1.04251618]
[1749492022514,0.74352806,108360.0,108350.0,1.15723881]
[1749492022712,0.74352806,108360.0,108350.0,1.12633881]
[1749492022916,0.95484431,108360.0,108350.0,1.09313881]
[1749492023115,1.01854431,108360.0,108350.0,1.09313881]
[1749492023515,0.80722806,108360.0,108350.0,1.09213881]
[1749492023813,0.80722806,108360.0,108350.0,1.12523881]
[1749492024019,0.55906386,108360.0,108350.0,1.33655506]
[1749492024216,0.55906386,108360.0,108350.0,1.12523881]
[1749492024418,0.55866386,108360.0,108350.0,1.12523881]
[1749492024617,0.55906386,108360.0,108350.0,1.12523881]
[1749492024814,0.03290386,108360.0,108350.0,1.12523881]
[1749492025015,0.55906386,108360.0,108350.0,1.12523881]
[1749492025215,0.03290386,108360.0,108350.0,1.12523881]
[1749492025415,0.03250386,108360.0,108350.0,1.12523881]
[1749492025721,0.6108246,108360.0,108350.0,1.12523881]
[1749492025921,0.64319849,108360.0,108350.0,1.12523881]
[1749492026331,0.64319849,108360.0,108350.0,1.01051618]
[1749492027625,0.45873389,108360.0,108350.0,1.01151618]
[1749492027918,0.64319849,108360.0,108350.0,1.01151618]
[1749492028123,0.64319849,108360.0,108350.0,1.01051618]
[1749492029727,0.64319849,108360.0,108350.0,1.12523881]
[1749492029922,0.42855474,108360.0,108350.0,1.12523881]
[1749492030119,1.52675099,108360.0,108350.0,0.03873498]
[1749492030320,1.23055099,108360.0,108350.0,0.03873498]
[1749492030519,1.7460572,108360.0,108350.0,0.03873498]
[1749492030922,0.1844987,108340.0,108330.0,0.27689744]
[1749492031121,0.92189495,108340.0,108330.0,0.27689744]
[1749492031327,0.98649495,108340.0,108330.0,0.27689744]
[1749492031528,0.98649495,108340.0,108330.0,0.28541631]
[1749492032022,0.98649495,108340.0,108330.0,0.29024631]
[1749492034027,0.94749495,108340.0,108330.0,0.29024631]
[1749492034430,0.42141495,108340.0,108330.0,0.29024631]
[1749492034631,0.94749495,108340.0,108330.0,0.29024631]
[1749492036734,0.94749495,108340.0,108330.0,0.35884064]
[1749492037136,0.94749495,108340.0,108330.0,0.12821044]
[1749492037327,0.94749495,108340.0,108330.0,0.19800351]
[1749492037639,0.94749495,108340.0,108330.0,0.01348781]
[1749492037640,1.36585495,108340.0,108330.0,0.01348781]
[1749492038051,1.72665495,108340.0,108330.0,0.01348781]
[1749492038433,1.20057495,108340.0,108330.0,0.19800351]
[1749492038734,0.0646,108340.0,108330.0,0.19800351]
[1749492038936,0.7756187,108340.0,108330.0,0.19800351]
[1749492039936,0.6687407,108350.0,108340.0,0.1844987]
[1749492040233,0.55732,108350.0,108340.0,0.75661495]
[1749492040438,0.7418017,108350.0,108340.0,0.81991495]
[1749492040641,0.7418017,108350.0,108340.0,0.72758037]
[1749492041125,0.8398739,108360.0,108350.0,0.1844817]
[1749492041346,1.3659939,108360.0,108350.0,0.1844817]
[1749492041839,1.3663939,108360.0,108350.0,0.1844817]
[1749492042039,1.57731015,108360.0,108350.0,0.1844817]
[1749492042240,1.57771015,108360.0,108350.0,0.1844817]
[1749492043336,1.58071015,108360.0,108350.0,0.1844817]
[1749492043939,1.05459015,108360.0,108350.0,0.1844817]
[1749492044139,1.61341015,108360.0,108350.0,0.1844817]
[1749492044738,1.97421015,108360.0,108350.0,0.1844817]
[1749492048335,2.12731015,108360.0,108350.0,0.1844817]
[1749492048635,1.97421015,108360.0,108350.0,0.1844817]
[1749492049141,1.97421015,108360.0,108350.0,0.1890917]
[1749492050548,1.97421015,108360.0,108350.0,0.1939217]
[1749492052951,1.2367739,108360.0,108350.0,0.1939217]
[1749492053242,1.97413015,108360.0,108350.0,0.1939217]
[1749492053445,1.97413015,108360.0,108350.0,0.2266217]
[1749492054640,1.61333015,108360.0,108350.0,0.2579217]
[1749492054841,1.4020139,108360.0,108350.0,0.2579217]
[1749492055039,1.61333015,108360.0,108350.0,0.2579217]
[1749492055746,1.51593015,108360.0,108350.0,0.2579217]
[1749492055943,0.2679753,108360.0,108350.0,0.6187217]
[1749492056138,0.7478851,108360.0,108350.0,0.83003795]
[1749492056537,0.7474851,108360.0,108350.0,0.94476058]
[1749492056739,0.7478851,108360.0,108350.0,0.73344433]
[1749492057246,0.56181389,108360.0,108350.0,0.73344433]
[1749492057448,0.74587889,108360.0,108350.0,0.73344433]
[1749492057640,0.74627889,108360.0,108350.0,0.73344433]
[1749492058047,0.74627889,108360.0,108350.0,0.94476058]
[1749492059650,0.13589389,108360.0,108350.0,0.94476058]
[1749492059952,0.74587889,108360.0,108350.0,0.94476058]
[1749492060138,0.03577389,108360.0,108350.0,0.94476058]
[1749492060344,0.42888,108360.0,108350.0,0.97352745]
[1749492060544,0.003,108360.0,108350.0,0.97352745]
[1749492060852,0.003,108360.0,108350.0,0.92232595]
[1749492061149,0.0034,108360.0,108350.0,0.92232595]
[1749492061652,0.0034,108360.0,108350.0,0.97346343]
[1749492061949,0.0034,108360.0,108350.0,0.83003795]
[1749492062148,0.0034,108360.0,108350.0,0.97346097]
[1749492062352,0.0034,108360.0,108350.0,0.83003795]
[1749492062844,0.0024,108360.0,108350.0,0.83003795]
[1749492063252,0.45409719,108370.0,108360.0,0.184465]
[1749492063453,0.45405719,108370.0,108360.0,0.991033]
[1749492063659,0.02821719,108370.0,108360.0,0.991033]
[1749492063950,0.42584,108370.0,108360.0,0.991033]
[1749492064144,1.92624,108370.0,108360.0,0.991033]
[1749492064337,2.110688,108370.0,108360.0,0.991033]
[1749492064847,2.110688,108370.0,108360.0,0.96231468]
[1749492065047,2.113688,108370.0,108360.0,0.75099843]
[1749492065850,2.14208415,108370.0,108360.0,0.75099843]
[1749492069953,2.7142004,108370.0,108360.0,0.29909843]
[1749492070141,2.7770004,108370.0,108360.0,0.29909843]
[1749492070341,2.7770004,108370.0,108360.0,0.184465]
[1749492070545,1.9903604,108370.0,108360.0,0.184465]
[1749492070751,2.5162404,108370.0,108360.0,0.184465]
[1749492070954,2.5162404,108370.0,108360.0,0.216465]
[1749492071144,1.0162404,108370.0,108360.0,0.216465]
[1749492071752,1.0162404,108370.0,108360.0,0.184465]
[1749492072252,1.3770404,108370.0,108360.0,0.184465]
[1749492072957,1.381097,108370.0,108360.0,0.184465]
[1749492073854,1.3770404,108370.0,108360.0,0.184465]
[1749492074550,1.0162404,108370.0,108360.0,0.184465]
[1749492075856,1.0162404,108370.0,108360.0,0.189075]
[1749492076658,0.27904415,108370.0,108360.0,0.549875]
[1749492076852,0.80492415,108370.0,108360.0,0.644475]
[1749492080052,0.80492415,108370.0,108360.0,0.75910843]
[1749492080462,0.27904415,108370.0,108360.0,0.75910843]
[1749492080660,0.80492415,108370.0,108360.0,0.75910843]
[1749492083263,0.80492415,108370.0,108360.0,0.76393843]
[1749492083563,1.0162404,108370.0,108360.0,0.30853843]
[1749492085667,1.0162404,108370.0,108360.0,0.26243568]
[1749492086465,0.80492415,108370.0,108360.0,0.26243568]
[1749492086653,1.0162404,108370.0,108360.0,0.26243568]
[1749492087065,0.80492415,108370.0,108360.0,0.26243568]
[1749492087364,1.0162404,108370.0,108360.0,0.29373568]
[1749492087559,1.0162404,108370.0,108360.0,0.53990225]
[1749492087758,1.0162404,108370.0,108360.0,0.65453568]
[1749492088664,0.21624415,108370.0,108360.0,0.65453568]
[1749492088963,0.74164415,108370.0,108360.0,0.89765193]
[1749492089159,0.74204415,108370.0,108360.0,0.68633568]
[1749492090067,0.21624415,108370.0,108360.0,0.68633568]
[1749492090258,0.74204415,108370.0,108360.0,0.68633568]
[1749492091564,0.74204415,108370.0,108360.0,0.32553568]
[1749492092268,0.9533604,108370.0,108360.0,0.32553568]
[1749492093171,0.9862604,108370.0,108360.0,0.32553568]
[1749492093470,0.77494415,108370.0,108360.0,0.32553568]
[1749492093770,0.9533604,108370.0,108360.0,0.32553568]
[1749492094367,0.21624415,108370.0,108360.0,0.68633568]
[1749492094569,0.03179615,108370.0,108360.0,0.92637025]
[1749492094773,0.45755615,108370.0,108360.0,0.92637025]
[1749492095070,0.45515615,108370.0,108360.0,0.92637025]
[1749492095267,0.45555615,108370.0,108360.0,0.92637025]
[1749492096273,0.64000415,108370.0,108360.0,0.92637025]
[1749492096668,0.21424415,108370.0,108360.0,0.92637025]
[1749492096873,0.45555615,108370.0,108360.0,0.92637025]
[1749492097072,0.63900415,108370.0,108360.0,0.92637025]
[1749492098475,0.45455615,108370.0,108360.0,0.92637025]
[1749492099569,0.21324415,108370.0,108360.0,0.92637025]
[1749492099863,0.45455615,108370.0,108360.0,0.92637025]
[1749492100368,0.45415615,108370.0,108360.0,0.92637025]
[1749492100677,0.45455615,108370.0,108360.0,0.92637025]
[1749492101569,0.45455615,108370.0,108360.0,0.715054]
[1749492101775,0.45455615,108370.0,108360.0,0.92637025]
[1749492101968,0.42612,108370.0,108360.0,1.1376865]
[1749492102168,0.42612,108370.0,108360.0,1.19506184]
[1749492102569,2.33169834,108380.0,108370.0,0.1844484]
[1749492102770,2.33169834,108380.0,108370.0,0.6375484]
[1749492102965,2.56732498,108380.0,108370.0,0.68998923]
[1749492103180,0.57466498,108380.0,108370.0,0.11474083]
[1749492103370,0.1844484,108370.0,108360.0,0.34545687]
[1749492103572,0.46096465,108370.0,108360.0,0.34545687]
[1749492104478,0.2496484,108370.0,108360.0,0.34545687]
[1749492104673,0.2496484,108370.0,108360.0,0.70625687]
[1749492104978,0.45629084,108380.0,108370.0,0.1844484]
[1749492105171,0.72950709,108380.0,108370.0,0.1844484]
[1749492105366,1.04395084,108380.0,108370.0,0.30379923]
[1749492105575,1.25526709,108380.0,108370.0,0.30379923]
[1749492105869,1.25566709,108380.0,108370.0,0.30379923]
[1749492106065,1.25566709,108380.0,108370.0,0.1890584]
[1749492106779,1.25666709,108380.0,108370.0,0.1938884]
[1749492107281,1.04535084,108380.0,108370.0,0.1938884]
[1749492107472,1.04535084,108380.0,108370.0,0.5546884]
[1749492107666,0.52553084,108380.0,108370.0,0.5546884]
[1749492107872,1.14468304,108380.0,108370.0,0.5862884]
[1749492108177,1.17548304,108380.0,108370.0,0.5862884]
[1749492108773,0.64972304,108380.0,108370.0,0.5862884]
[1749492109278,1.20768304,108380.0,108370.0,0.2254884]
[1749492109583,1.56848304,108380.0,108370.0,0.1938884]
[1749492109774,1.16735084,108380.0,108370.0,0.1938884]
[1749492110082,1.37866709,108380.0,108370.0,0.1938884]
[1749492110383,1.4189837,108380.0,108370.0,0.1938884]
[1749492110578,1.4189837,108380.0,108370.0,0.00944]
[1749492110783,1.7797837,108380.0,108370.0,0.1938884]
[1749492111882,1.73946709,108380.0,108370.0,0.12418083]
[1749492112286,1.73946709,108380.0,108370.0,0.00944]
[1749492114887,1.77977816,108380.0,108370.0,0.00944]
[1749492117496,1.78383476,108380.0,108370.0,0.00944]
[1749492117999,0.1844654,108360.0,108350.0,0.10543977]
[1749492118188,1.28234165,108360.0,108350.0,0.28992227]
[1749492118388,1.34704165,108360.0,108350.0,0.28992227]
[1749492118892,1.57527763,108360.0,108350.0,0.10543977]
[1749492119395,0.1844824,108350.0,108340.0,0.35609584]
[1749492119595,0.49069865,108350.0,108340.0,0.3557252]
[1749492119895,0.2793824,108350.0,108340.0,0.35785462]
[1749492120085,0.8051824,108350.0,108340.0,0.38875462]
[1749492120289,0.7102824,108350.0,108340.0,0.60007087]
[1749492120484,0.1844824,108350.0,108340.0,0.60007087]
[1749492120690,0.7092824,108350.0,108340.0,0.60007087]
[1749492121596,0.7092824,108350.0,108340.0,0.39175462]
[1749492123095,1.28139865,108350.0,108340.0,0.06926836]
[1749492123400,1.43449865,108350.0,108340.0,0.00526836]
[1749492123596,1.49519865,108350.0,108340.0,0.00526836]
[1749492123897,1.49519865,108350.0,108340.0,0.00313894]
[1749492125099,1.2838824,108350.0,108340.0,0.00313894]
[1749492125394,1.13439865,108350.0,108340.0,0.00313894]
[1749492125586,1.49519865,108350.0,108340.0,0.00313894]
[1749492128299,1.2838824,108350.0,108340.0,0.00313894]
[1749492128599,1.49519865,108350.0,108340.0,0.00313894]
[1749492129987,0.1845165,108330.0,108320.0,0.39455527]
[1749492130192,0.92167275,108330.0,108320.0,0.39455527]
[1749492130392,1.09858185,108340.0,108330.0,0.1845165]
[1749492130696,0.5452839,108350.0,108340.0,0.1844995]
[1749492130891,1.28185275,108360.0,108350.0,0.1844824]
[1749492130892,1.51511365,108360.0,108350.0,0.1844824]
[1749492131091,1.05904301,108360.0,108350.0,0.1844824]
[1749492131395,1.58488301,108360.0,108350.0,0.2502824]
[1749492131699,0.7910174,108360.0,108350.0,0.2502824]
[1749492131897,1.3164574,108360.0,108350.0,0.2502824]
[1749492132097,1.3168574,108360.0,108350.0,0.2502824]
[1749492132597,0.9560574,108360.0,108350.0,0.2502824]
[1749492133097,0.8029574,108360.0,108350.0,0.2502824]
[1749492134195,0.2309986,108360.0,108350.0,0.2502824]
[1749492134402,2.2568386,108360.0,108350.0,0.82239865]
[1749492134601,2.2568386,108360.0,108350.0,0.6110824]
[1749492136303,1.7309986,108360.0,108350.0,0.6110824]
[1749492136492,2.2568386,108360.0,108350.0,0.6110824]
[1749492137201,1.5004,108360.0,108350.0,0.82239865]
[1749492137399,2.02624,108360.0,108350.0,0.93703192]
[1749492138007,2.02584,108360.0,108350.0,0.93703192]
[1749492138207,2.02624,108360.0,108350.0,0.93703192]
[1749492139296,2.02624,108360.0,108350.0,0.82239865]
[1749492139297,0.10044,108360.0,108350.0,0.82239865]
[1749492139603,0.52584,108360.0,108350.0,0.96581262]
[1749492140405,0.52624,108360.0,108350.0,0.96581262]
[1749492140793,0.0004,108360.0,108350.0,0.96581262]
[1749492140998,0.6106254,108360.0,108350.0,0.96581262]
[1749492141194,0.42616,108360.0,108350.0,0.96581262]
[1749492141901,0.1848653,108360.0,108350.0,0.96581262]
[1749492142104,0.1848653,108360.0,108350.0,0.75449637]
[1749492142105,0.6106253,108360.0,108350.0,0.75449637]
[1749492142302,0.82194155,108360.0,108350.0,0.75449637]
[1749492142504,0.82194155,108360.0,108350.0,0.86903586]
[1749492142705,0.82194155,108360.0,108350.0,0.72562189]
[1749492142902,0.82194155,108360.0,108350.0,0.86903586]
[1749492143301,0.6106253,108360.0,108350.0,0.86903586]
[1749492143803,0.6106253,108360.0,108350.0,1.08035211]
[1749492143804,0.1848653,108360.0,108350.0,1.08035211]
[1749492144007,0.7106653,108360.0,108350.0,0.96581262]
[1749492146207,0.7106653,108360.0,108350.0,1.08035957]
[1749492147407,0.7106653,108360.0,108350.0,1.08036904]
[1749492147603,0.10044,108360.0,108350.0,0.96581262]
[1749492147802,0.52616,108360.0,108350.0,0.96581262]
[1749492148009,0.52616,108360.0,108350.0,1.08036884]
[1749492149711,0.7106254,108360.0,108350.0,1.08036884]
[1749492150312,0.7106254,108360.0,108350.0,0.93695487]
[1749492150714,0.92194165,108360.0,108350.0,0.72563862]
[1749492150910,0.92194165,108360.0,108350.0,0.69273862]
[1749492151112,1.01634165,108360.0,108350.0,0.69273862]
[1749492151313,1.01634165,108360.0,108350.0,0.65983862]
[1749492151510,1.37714165,108360.0,108350.0,0.29903862]
[1749492152214,0.1844824,108350.0,108340.0,0.34530466]
[1749492152406,0.81969865,108350.0,108340.0,0.29881292]
[1749492152610,0.81969865,108350.0,108340.0,0.18638612]
[1749492153112,0.78069865,108350.0,108340.0,0.18638612]
[1749492153611,0.78169865,108350.0,108340.0,0.18638612]
[1749492154513,0.78169865,108350.0,108340.0,0.18662892]
[1749492154812,0.1844995,108340.0,108330.0,0.00013894]
[1749492155013,1.6845165,108330.0,108320.0,0.1845193]
[1749492155205,1.96143275,108330.0,108320.0,0.1845193]
[1749492155608,2.32223275,108330.0,108320.0,0.19729879]
[1749492156219,2.32223275,108330.0,108320.0,0.19929879]
[1749492157614,1.5656,108330.0,108320.0,0.56009879]
[1749492157823,1.7501165,108330.0,108320.0,0.59189879]
[1749492158517,1.5,108330.0,108320.0,0.80321504]
[1749492158720,0.52576,108330.0,108320.0,0.94997126]
[1749492159019,0.52576,108330.0,108320.0,0.97882901]
[1749492159020,0.52616,108330.0,108320.0,0.97882901]
[1749492160014,0.0004,108330.0,108320.0,0.97882901]
[1749492160220,0.2845402,108340.0,108330.0,0.1845165]
[1749492160420,0.7103002,108340.0,108330.0,0.60647789]
[1749492160619,0.7107002,108340.0,108330.0,0.60647789]
[1749492160815,0.7107002,108340.0,108330.0,0.61499676]
[1749492161415,0.7107002,108340.0,108330.0,0.40368051]
[1749492161812,0.7107002,108340.0,108330.0,0.28913537]
[1749492162019,0.7107002,108340.0,108330.0,0.64993537]
[1749492162318,0.7107002,108340.0,108330.0,0.76448051]
[1749492163516,0.6106602,108340.0,108330.0,0.76448051]
[1749492163721,0.7107002,108340.0,108330.0,0.76448051]
[1749492166024,0.7107002,108340.0,108330.0,0.64993537]
[1749492166322,0.7107002,108340.0,108330.0,0.76448051]
[1749492166521,0.7107002,108340.0,108330.0,0.64993537]
[1749492166823,0.7107002,108340.0,108330.0,0.86125162]
[1749492167119,0.92201645,108340.0,108330.0,0.64993537]
[1749492167327,0.91501645,108340.0,108330.0,0.19303537]
[1749492167517,0.97731645,108340.0,108330.0,0.19303537]
[1749492169818,1.33811645,108340.0,108330.0,0.19303537]
[1749492170216,1.33811645,108340.0,108330.0,0.00851887]
[1749492171929,1.34011645,108340.0,108330.0,0.00851887]
[1749492174329,1.30111645,108340.0,108330.0,0.00851887]
[1749492177524,0.77531645,108340.0,108330.0,0.19303527]
[1749492177730,1.0735795,108340.0,108330.0,0.40435152]
[1749492177930,0.1864995,108340.0,108330.0,0.82875152]
[1749492178231,0.0024,108340.0,108330.0,1.52578574]
[1749492178430,0.002,108340.0,108330.0,1.52578574]
[1749492178628,0.0024,108340.0,108330.0,1.22216549]
[1749492178832,0.0024,108340.0,108330.0,1.31446949]
[1749492179023,0.0014,108340.0,108330.0,1.31446949]
[1749492179223,0.0014,108340.0,108330.0,1.06446949]
[1749492179520,0.0014,108340.0,108330.0,1.08400837]
[1749492180332,0.00013894,108350.0,108340.0,0.1844995]
[1749492180523,0.00013894,108350.0,108340.0,0.9825686]
[1749492180524,0.42617894,108350.0,108340.0,0.9825686]
[1749492180726,0.00013894,108350.0,108340.0,0.9825686]
[1749492180927,0.00013894,108350.0,108340.0,0.84341367]
[1749492181427,0.00013894,108350.0,108340.0,1.04414076]
[1749492181826,0.00053894,108350.0,108340.0,1.04414076]
[1749492182326,0.00053894,108350.0,108340.0,1.04614076]
[1749492182626,0.00053894,108350.0,108340.0,0.84541367]
[1749492182826,0.00053894,108350.0,108340.0,0.93770967]
[1749492183026,0.7106493,108370.0,108360.0,0.1844654]
[1749492183221,0.7106493,108370.0,108360.0,0.65975485]
[1749492183222,0.28411866,108370.0,108360.0,0.65975485]
[1749492183529,0.71027866,108370.0,108360.0,0.75405485]
[1749492183832,1.60044,108370.0,108360.0,1.34570998]
[1749492184029,0.52652,108370.0,108360.0,1.34570998]
[1749492184527,0.52612,108370.0,108360.0,1.34570998]
[1749492184733,0.52652,108370.0,108360.0,1.34570998]
[1749492184933,0.52752,108370.0,108360.0,1.34570998]
[1749492185128,0.7119684,108370.0,108360.0,1.34570998]
[1749492185329,0.52752,108370.0,108360.0,1.11485485]
[1749492185527,0.52752,108370.0,108360.0,1.25796667]
[1749492185834,0.52752,108370.0,108360.0,1.11485485]
[1749492188432,0.001,108370.0,108360.0,1.23122053]
[1749492188637,0.0014,108370.0,108360.0,1.37433235]
[1749492188940,0.001,108370.0,108360.0,1.37433235]
[1749492189127,0.0014,108370.0,108360.0,1.37433235]
[1749492189826,0.0014,108370.0,108360.0,1.3454246]
[1749492194338,0.0014,108370.0,108360.0,1.11456947]
[1749492194838,0.0014,108370.0,108360.0,1.23122053]
[1749492196643,0.0014,108370.0,108360.0,1.0003654]
[1749492196945,0.0014,108370.0,108360.0,1.23122053]
[1749492198341,0.1858484,108370.0,108360.0,1.23122053]
[1749492198736,0.1858484,108370.0,108360.0,1.0003654]
[1749492199334,0.41670353,108370.0,108360.0,1.0003654]
[1749492199544,0.51670353,108370.0,108360.0,1.0003654]
[1749492199737,0.2858484,108370.0,108360.0,1.0003654]
[1749492199941,0.3166484,108370.0,108360.0,0.9060654]
[1749492200442,0.3166484,108370.0,108360.0,0.9384654]
[1749492201148,0.3166484,108370.0,108360.0,0.9715654]
[1749492201550,0.3166484,108370.0,108360.0,0.9060654]
[1749492201846,0.56036778,108370.0,108360.0,0.9060654]
[1749492202051,0.3166484,108370.0,108360.0,0.9060654]
[1749492202240,0.3166484,108370.0,108360.0,0.9716654]
[1749492204645,0.3166484,108370.0,108360.0,1.08586947]
[1749492204845,0.3488484,108370.0,108360.0,1.08586947]
[1749492206451,0.1644,108370.0,108360.0,1.08586947]
[1749492206951,0.3488484,108370.0,108360.0,1.08586947]
[1749492208251,0.3488484,108370.0,108360.0,1.05276947]
[1749492208641,0.3488484,108370.0,108360.0,0.9385654]
[1749492208839,0.3488484,108370.0,108360.0,1.08167722]
[1749492209248,0.3488484,108370.0,108360.0,0.9385654]
[1749492209947,0.3488484,108370.0,108360.0,1.08200487]
[1749492210150,0.2488484,108370.0,108360.0,1.04950487]
[1749492210349,1.34630778,108370.0,108360.0,0.14343947]
[1749492210557,1.34630778,108370.0,108360.0,0.11475149]
[1749492210758,0.1844659,108360.0,108350.0,0.32303833]
[1749492211059,0.49018528,108360.0,108350.0,0.58123675]
[1749492211662,0.49018528,108360.0,108350.0,0.43779728]
[1749492211959,0.49018528,108360.0,108350.0,0.44240728]
[1749492212664,0.49018528,108360.0,108350.0,0.80320728]
[1749492213359,0.55614,108360.0,108350.0,1.01422666]
[1749492213560,0.52584,108360.0,108350.0,1.10740718]
[1749492213755,0.7103059,108360.0,108350.0,1.10740718]
[1749492214160,0.7103059,108360.0,108350.0,1.07866379]
[1749492214459,0.7406059,108360.0,108350.0,1.07866379]
[1749492214667,0.55614,108360.0,108350.0,0.86764441]
[1749492214859,0.7406059,108360.0,108350.0,0.86764441]
[1749492215257,0.95162528,108360.0,108350.0,0.80314441]
[1749492215458,0.98462528,108360.0,108350.0,0.80314441]
[1749492215963,0.58914,108360.0,108350.0,0.80314441]
[1749492216165,0.0633,108360.0,108350.0,0.86844441]
[1749492216365,0.58914,108360.0,108350.0,0.86844441]
[1749492216566,0.7736059,108360.0,108350.0,0.89944441]